bitfinex-derivatives/quotes_ETHF0:USTF0_20251012
["timestamp","ask_amount","ask_price","bid_price","bid_amount"]
[1760304675282,0.43765,4109.1,4109.0,1.9666]
[1760304675587,0.43765,4109.1,4107.6,0.1588732]
[1760304675588,0.4378,4107.7,4107.6,0.1588732]
[1760304675790,3.6456,4107.7,4107.6,1.415]
[1760304675988,8.36837731,4107.7,4107.6,1.415]
[1760304676292,8.36837731,4107.7,4107.6,1.41761832]
[1760304676485,8.36837731,4107.7,4107.6,0.00261832]
[1760304676686,8.36837731,4107.7,4106.4,3.2078]
[1760304676687,1.09479,4106.7,4104.0,0.5516]
[1760304676887,3.2078,4105.4,4104.7,1.415]
[1760304677293,0.43813,4104.7,4104.5,0.5516]
[1760304677589,4.99942045,4104.6,4104.5,1.9695335]
[1760304677790,4.99942045,4104.6,4104.5,0.0029335]
[1760304680082,10.95408,4104.4,4103.0,1.9666]
[1760304680288,3.64607,4103.3,4103.0,1.9666]
[1760304680492,0.43831,4102.9,4102.4,1.415]
[1760304680894,5.53048836,4102.9,4102.4,1.415]
[1760304681196,5.53048836,4102.9,4102.8,1.44179568]
[1760304681399,1.99160948,4102.9,4102.8,0.02679568]
[1760304681599,5.21477113,4102.9,4102.8,0.02679568]
[1760304681795,3.22316165,4102.9,4102.8,0.02679568]
[1760304682100,2.56951668,4102.9,4102.8,0.02679568]
[1760304682494,3.1329852,4102.9,4101.9,3.2078]
[1760304682794,0.43837,4102.4,4102.0,1.5006]
[1760304682988,3.2078,4102.7,4101.7,1.5006]
[1760304683191,6.33813899,4102.3,4101.7,1.5006]
[1760304683393,0.43839,4102.3,4101.7,1.50292722]
[1760304683696,5.80005033,4102.2,4101.7,0.00232722]
[1760304683897,5.80005033,4102.2,4101.9,1.5006]
[1760304684199,5.80005033,4102.2,4101.8,3.2078]
[1760304684389,2.6689606,4102.2,4102.1,1.5006]
[1760304684589,3.2078,4103.2,4102.3,1.5006]
[1760304684899,3.2078,4103.2,4103.1,1.5006]
[1760304685098,3.05304166,4103.2,4103.1,1.5006]
[1760304685897,3.2078,4103.7,4103.1,1.93888]
[1760304686200,3.23037205,4103.6,4103.1,1.93888]
[1760304686496,6.36120741,4103.9,4102.9,3.2078]
[1760304686497,3.2078,4104.2,4103.8,1.93882]
[1760304686698,0.00280649,4104.7,4104.1,4.7084]
[1760304686897,5.95666777,4104.3,4104.1,4.7084]
[1760304687092,3.26005866,4104.4,4104.1,4.7084]
[1760304687292,3.10095465,4104.2,4104.1,4.7084]
[1760304687489,2.72629572,4104.2,4104.0,1.03]
[1760304687700,0.11873125,4104.3,4104.2,1.93878]
[1760304688000,0.08905115,4104.4,4104.3,1.5006]
[1760304688201,2.79809323,4104.6,4104.5,2.0924]
[1760304688500,3.22639109,4104.6,4104.5,0.43814]
[1760304688803,6.02448432,4104.6,4104.5,1.02994]
[1760304689203,6.02448432,4104.6,4104.5,2.0924]
[1760304689502,2.79809323,4104.6,4104.5,2.0924]
[1760304691398,0.00280649,4104.7,4104.5,2.0924]
[1760304691704,3.2078,4106.0,4105.9,1.5006]
[1760304692092,3.16571292,4106.1,4106.0,1.02978]
[1760304692291,3.2078,4107.2,4106.9,0.43788]
[1760304692495,3.2078,4107.2,4106.2,1.09491]
[1760304692496,2.8234,4107.2,4107.0,1.93847]
[1760304692798,5.44855436,4107.1,4107.0,1.03139512]
[1760304692997,2.55442016,4107.7,4107.5,0.43782]
[1760304693202,2.55442016,4107.7,4107.6,1.5006]
[1760304693397,0.43779,4107.9,4107.6,0.43781]
[1760304693598,0.43777,4108.1,4107.7,1.9384]
[1760304693799,3.36038161,4107.8,4107.7,1.9384]
[1760304694102,3.96482342,4108.2,4108.1,0.43776]
[1760304694301,0.43769,4108.8,4108.4,0.43772]
[1760304694604,3.13233677,4108.7,4108.6,0.4377]
[1760304694802,5.38537986,4108.7,4108.6,5.1461]
[1760304695099,2.25304309,4108.7,4108.6,5.1461]
[1760304695300,2.25304309,4108.7,4108.6,1.9163]
[1760304696302,2.25304309,4108.7,4108.6,5.1241]
[1760304696704,0.00235207,4108.8,4108.7,1.5006]
[1760304697198,0.04508047,4108.8,4108.7,1.5006]
[1760304697405,3.13731484,4108.8,4108.2,0.5918]
[1760304697594,3.2078,4108.5,4108.3,1.5006]
[1760304697794,3.2078,4108.5,4108.2,0.5918]
[1760304698006,0.43777,4108.0,4107.7,1.5006]
[1760304698303,0.43777,4108.0,4107.1,1.5006]
[1760304698304,4.15655162,4107.9,4107.1,1.5006]
[1760304698599,3.71876162,4107.9,4107.7,0.4378]
[1760304698798,3.71876162,4107.9,4107.7,1.9384]
[1760304699895,3.71876162,4107.9,4107.7,1.5006]
[1760304701402,3.71876162,4107.9,4107.1,1.93846]
[1760304701705,3.71876162,4107.9,4106.9,3.2078]
[1760304701706,3.2078,4107.4,4107.0,0.00172512]
[1760304701901,3.64564,4107.4,4107.0,1.94019512]
[1760304702206,6.25103828,4107.3,4107.1,1.5006]
[1760304702997,6.25103828,4107.3,4107.0,0.43959512]
[1760304703202,3.64553,4108.4,4108.0,1.02956]
[1760304703407,3.64553,4108.4,4108.1,1.5006]
[1760304703606,0.67437667,4108.2,4108.1,1.93836]
[1760304703907,2.39052642,4108.3,4108.2,1.5006]
[1760304704110,3.2078,4108.4,4108.3,0.43774]
[1760304704306,3.2078,4108.4,4108.3,1.93834]
[1760304704504,0.00235207,4108.8,4108.7,1.9383]
[1760304704909,5.74507931,4108.8,4108.7,1.9383]
[1760304705105,2.61230492,4108.8,4108.7,1.9383]
[1760304709219,5.83411996,4108.8,4108.7,1.9383]
[1760304709917,2.61230492,4108.8,4108.7,1.9383]
[1760304711923,3.2078,4109.7,4109.6,1.8757]
[1760304712623,3.64532,4110.4,4110.0,0.5768]
[1760304712820,0.00316295,4110.4,4110.3,1.87563]
[1760304713021,3.21096295,4110.4,4110.1,1.4381]
[1760304713219,8.1395632,4110.4,4110.0,0.57916371]
[1760304713523,8.5770832,4110.4,4110.2,1.4381]
[1760304713817,8.5770832,4110.4,4108.6,3.2078]
[1760304713818,8.1395632,4110.4,4108.6,3.2078]
[1760304714018,0.43778,4108.0,4105.7,0.27577282]
[1760304714325,3.2078,4106.4,4105.8,0.27577282]
[1760304714613,3.2078,4106.4,4105.6,0.15838502]
[1760304714614,3.2078,4106.4,4106.2,0.43795]
[1760304714814,3.2078,4106.4,4106.3,0.27577282]
[1760304715016,3.20962796,4106.4,4106.3,0.27577282]
[1760304715212,3.20962796,4106.4,4106.2,0.4410752]
[1760304715410,3.20962796,4106.4,4106.3,0.27577282]
[1760304715920,3.20962796,4106.4,4106.3,1.4381]
[1760304719117,5.76973417,4106.4,4106.3,1.4381]
[1760304719717,5.76973417,4106.4,4106.2,0.0031252]
[1760304719718,0.43795,4106.3,4106.2,5.2e-06]
[1760304719921,1.10678575,4106.3,4106.2,5.2e-06]
[1760304720222,5.98656888,4106.3,4106.2,5.2e-06]
[1760304720416,1.09505,4105.7,4104.1,0.16205461]
[1760304720618,0.43818,4104.2,4104.0,0.5768]
[1760304720818,0.43818,4104.2,4104.1,1.71387282]
[1760304721020,2.76962,4104.2,4104.1,1.87629]
[1760304721220,0.43808,4105.1,4104.7,0.43812]
[1760304721524,0.43808,4105.1,4104.9,1.4381]
[1760304722024,1.99147399,4105.3,4104.7,0.00269913]
[1760304722222,0.43811,4104.9,4104.7,0.00269913]
[1760304722414,3.2078,4104.8,4104.7,0.00269913]
[1760304722618,7.83366052,4104.8,4104.7,0.00269913]
[1760304722826,8.50225131,4104.8,4104.7,0.00269913]
[1760304723724,7.83366052,4104.8,4104.7,0.00269913]
[1760304723922,8.50160411,4104.8,4104.7,0.00269913]
[1760304724117,7.83366052,4104.8,4104.7,0.00269913]
[1760304724726,3.32649293,4104.8,4104.7,0.00269913]
[1760304726025,3.99323766,4104.8,4104.7,0.00269913]
[1760304726425,3.32649293,4104.8,4104.7,0.00269913]
[1760304727123,3.32649293,4104.8,4104.7,1.44079913]
[1760304727820,3.32649293,4104.8,4104.7,0.00269913]
[1760304728522,1.3252,4105.8,4104.7,1.44079913]
[1760304728722,3.2078,4105.4,4105.0,0.43809]
[1760304728927,2.7278797,4105.3,4105.0,0.43809]
[1760304729126,0.43808,4105.2,4105.0,1.4381]
[1760304729427,0.43808,4105.2,4105.1,1.4381]
[1760304729729,2.6132316,4105.2,4105.1,1.4381]
[1760304730527,0.4381,4104.9,4104.7,1.44079913]
[1760304730833,2.80043289,4104.8,4104.7,0.00269913]
[1760304731618,7.26328466,4104.8,4104.7,0.00269913]
[1760304731825,2.80043289,4104.8,4104.7,1.87891913]
[1760304732222,0.43808,4105.1,4105.0,0.43809]
[1760304732729,2.97397943,4105.1,4105.0,0.43809]
[1760304733121,2.53589943,4105.1,4105.0,1.87619]
[1760304733324,1.09506,4105.7,4105.6,0.43803]
[1760304733325,0.43802,4105.7,4105.6,0.43803]
[1760304733722,4.3028,4105.9,4105.0,2.0149]
[1760304733918,4.3028,4105.9,4105.3,0.43805]
[1760304733919,0.43805,4105.4,4105.3,0.43805]
[1760304734226,0.059332,4105.4,4105.0,2.0149]
[1760304734430,0.059332,4105.4,4105.1,1.4381]
[1760304734625,2.66712223,4105.6,4105.5,0.43804]
[1760304734929,2.66712223,4105.6,4105.1,1.4381]
[1760304734930,3.54451585,4105.8,4105.7,0.43801]
[1760304735431,3.14267338,4105.8,4105.5,0.43803]
[1760304735624,0.43802,4105.7,4105.5,0.43803]
[1760304735824,0.43802,4105.7,4105.6,0.43803]
[1760304736026,3.23108021,4105.8,4105.7,0.43802]
[1760304736221,3.23108021,4105.8,4105.1,1.4381]
[1760304736434,3.6458,4105.9,4105.0,1.67202]
[1760304736435,3.2078,4105.9,4105.8,1.8761]
[1760304737131,3.2078,4105.9,4105.3,3.2078]
[1760304737326,3.2078,4105.9,4103.2,4.85840039]
[1760304737327,1.86681,4103.0,4101.6,2.97089427]
[1760304737520,1.86681,4103.0,4101.5,0.5768]
[1760304737521,3.2078,4102.9,4102.0,0.5768]
[1760304737821,9.58135611,4102.9,4102.2,1.4381]
[1760304738027,3.64611,4102.9,4102.2,1.4381]
[1760304738222,11.01632817,4102.9,4102.8,0.02736573]
[1760304739630,1.4285,4102.8,4101.2,1.4381]
[1760304739832,0.43845,4101.7,4101.2,1.87659]
[1760304740029,0.43845,4101.7,4101.3,0.43848]
[1760304740333,3.2078,4101.5,4101.4,1.4381]
[1760304740630,3.2078,4101.5,4101.4,1.44102027]
[1760304743032,4.8243,4101.5,4101.4,0.00292027]
[1760304743235,7.58784685,4101.5,4101.4,0.00292027]
[1760304743532,7.58784685,4101.5,4100.4,0.43858]
[1760304743533,1.6165,4101.3,4100.4,0.43858]
[1760304743836,4.8243,4100.8,4100.1,1.4914]
[1760304744023,4.8243,4100.8,4099.5,0.5768]
[1760304744024,0.43861,4100.2,4100.0,5.0]
[1760304744223,1.6165,4100.1,4100.0,5.0]
[1760304744623,4.8243,4100.5,4100.1,1.4914]
[1760304744829,3.2078,4100.5,4100.0,5.44159481]
[1760304745032,2.76945054,4100.4,4100.1,1.4914]
[1760304745230,3.2078,4100.5,4100.1,1.4914]
[1760304745428,3.18435315,4100.3,4100.1,1.4914]
[1760304745731,1.99009951,4100.5,4100.4,0.43858]
[1760304745940,0.43855,4100.7,4100.4,1.92998]
[1760304746130,2.05505,4100.7,4100.4,1.92998]
[1760304746635,2.69755627,4100.6,4100.0,5.00297481]
[1760304746841,2.69755627,4100.6,4100.4,0.43858]
[1760304747133,3.2078,4101.0,4100.0,5.00297481]
[1760304747134,0.43855,4100.7,4100.5,0.43857]
[1760304747328,0.4386,4100.3,4100.1,0.43861]
[1760304747531,1.6165,4100.4,4100.0,5.00297481]
[1760304747532,0.43861,4100.2,4100.0,5.00297481]
[1760304747734,2.14433063,4100.2,4100.0,5.00297481]
[1760304748034,2.14433063,4100.2,4100.0,5.44159481]
[1760304748534,4.81878629,4100.1,4100.0,5.00297481]
[1760304748745,7.59317631,4100.1,4100.0,5.00297481]
[1760304749127,7.59317631,4100.1,4100.0,1.38870344]
[1760304749332,0.4387,4099.3,4098.6,0.43877]
[1760304749532,3.6465,4099.3,4098.8,1.93015]
[1760304749746,9.56928147,4099.3,4098.8,1.93015]
[1760304750040,9.56928147,4099.3,4098.5,0.6453]
[1760304750041,9.13058147,4099.3,4099.2,2.17405706]
[1760304750243,9.1331865,4099.3,4099.2,1.73746491]
[1760304750638,0.00260503,4099.3,4099.2,1.73746491]
[1760304750935,3.2078,4100.0,4099.9,1.93003]
[1760304751441,5.76486961,4100.0,4099.9,1.4914]
[1760304751842,3.2078,4100.0,4099.9,1.4914]
[1760304752141,3.21083478,4100.0,4099.9,1.4914]
[1760304753229,6.39149949,4100.0,4099.9,1.4914]
[1760304753641,3.21083478,4100.0,4099.9,1.4914]
[1760304754242,9.0914989,4100.0,4099.5,0.6453]
[1760304754436,0.43867,4099.7,4099.5,0.6453]
[1760304754636,0.4387,4099.3,4099.2,0.24606491]
[1760304754835,3.6465,4099.3,4099.2,0.24606491]
[1760304755042,9.46226156,4099.3,4099.2,0.24606491]
[1760304755740,0.4388,4098.4,4098.1,1.4914]
[1760304755940,0.43882,4098.2,4098.1,1.4914]
[1760304756144,5.69855509,4098.3,4097.5,0.6453]
[1760304756334,3.2078,4097.9,4097.5,0.6453]
[1760304756539,3.2078,4097.9,4097.8,0.0271778]
[1760304756740,8.86935478,4097.9,4097.8,0.0271778]
[1760304757135,8.86935478,4097.9,4097.8,1.5185778]
[1760304758345,3.2078,4097.9,4097.8,1.5185778]
[1760304758644,9.22826101,4097.9,4097.8,1.5185778]
[1760304758845,5.99264182,4097.9,4097.8,1.5185778]
[1760304759248,3.2078,4097.9,4097.8,1.5185778]
[1760304760645,3.2078,4097.9,4097.8,1.9574378]
[1760304761845,3.2078,4098.4,4098.2,0.43881]
[1760304762145,3.2078,4098.4,4098.3,1.4914]
[1760304762538,1.09656,4100.1,4098.0,0.6453]
[1760304762539,3.2078,4099.5,4099.2,0.43871]
[1760304762744,1.98909632,4099.5,4099.3,1.93009]
[1760304762944,3.15122397,4099.4,4099.3,1.93009]
[1760304763144,1.98909632,4099.5,4099.3,0.43869]
[1760304763442,1.98909632,4099.5,4099.4,1.4914]
[1760304764046,3.2078,4100.1,4099.9,2.06093]
[1760304764242,3.2078,4100.6,4099.9,2.06093]
[1760304764936,0.43848,4101.4,4099.9,2.06093]
[1760304764937,1.98909632,4101.2,4099.9,1.6223]
[1760304765151,3.2078,4101.8,4101.5,1.07606]
[1760304765344,5.78112752,4101.8,4101.7,1.6223]
[1760304765539,5.00758524,4102.2,4101.8,0.43843]
[1760304765845,0.43834,4102.7,4102.1,0.43839]
[1760304766051,0.43836,4102.5,4102.1,1.62455045]
[1760304766247,3.95178817,4102.4,4102.1,0.00225045]
[1760304766550,0.00215136,4102.7,4102.1,0.00225045]
[1760304766854,5.29679039,4102.2,4102.1,0.00225045]
[1760304767240,9.267236,4102.2,4102.1,0.00225045]
[1760304767543,4.40883561,4102.2,4102.1,0.00225045]
[1760304767945,4.40883561,4102.2,4101.5,0.6376]
[1760304767946,0.43845,4101.6,4101.5,0.6376]
[1760304768149,0.43853,4101.0,4100.5,2.2599]
[1760304768450,5.98355659,4100.9,4100.5,2.2599]
[1760304768646,5.98355659,4100.9,4100.5,0.6376]
[1760304768843,5.98355659,4100.9,4100.6,1.6223]
[1760304769045,5.98355659,4100.9,4100.5,0.64000763]
[1760304769241,5.98355659,4100.9,4100.6,1.6223]
[1760304769745,5.98355659,4100.9,4100.8,1.6223]
[1760304770349,2.7591654,4100.9,4100.8,1.6223]
[1760304770644,6.36641298,4100.9,4100.6,0.43856]
[1760304770843,6.36641298,4100.9,4100.5,0.64000763]
[1760304770844,3.64635,4100.7,4100.5,7.63e-06]
[1760304771045,0.43861,4100.2,4099.6,1.6223]
[1760304771244,3.87575729,4100.1,4099.7,1.6223]
[1760304771452,0.43865,4099.9,4099.7,1.6223]
[1760304771642,0.43866,4099.7,4099.5,0.6376]
[1760304771847,0.43872,4099.1,4099.0,0.6376]
[1760304772146,6.30554274,4099.1,4099.0,0.64072235]
[1760304772346,6.30554274,4099.1,4099.0,2.22672235]
[1760304772744,2.73183429,4099.1,4099.0,2.66545235]
[1760304772951,2.54573429,4099.1,4099.0,5.87325235]
[1760304773253,0.43862,4100.1,4099.8,0.43864]
[1760304773450,0.43862,4100.1,4099.9,2.02463]
[1760304773647,5.8065269,4100.1,4100.0,2.02462]
[1760304773847,5.8065269,4100.1,4100.0,2.62082]
[1760304774050,2.57667039,4100.1,4100.0,2.62082]
[1760304774346,0.00303608,4100.1,4100.0,2.62082]
[1760304774556,3.2078,4101.3,4101.2,2.0245]
[1760304774746,3.2078,4101.9,4101.7,0.43844]
[1760304774947,0.66899583,4101.8,4101.7,1.586]
[1760304775146,6.70382452,4101.8,4101.7,1.586]
[1760304775352,6.03482869,4101.8,4101.7,1.586]
[1760304775653,6.03655114,4101.8,4101.7,1.586]
[1760304776041,2.79346537,4101.8,4101.7,1.586]
[1760304776447,0.00172245,4101.8,4101.7,1.586]
[1760304777350,3.2078,4102.4,4102.3,2.02438]
[1760304777746,3.2078,4103.0,4102.9,0.43831]
[1760304777942,3.2078,4103.0,4102.9,2.02431]
[1760304778144,8.94518804,4103.0,4102.9,1.586]
[1760304778353,5.74051294,4103.0,4102.9,1.58862274]
[1760304778555,6.17881294,4103.0,4102.9,0.00262274]
[1760304778855,6.17881294,4103.0,4102.9,1.58862274]
[1760304778856,5.74051294,4103.0,4102.9,1.58862274]
[1760304780455,8.94831294,4103.0,4102.2,1.586]
[1760304780650,8.94831294,4103.0,4102.1,3.2078]
[1760304780651,0.43834,4102.7,4102.4,1.586]
[1760304780855,0.43836,4102.5,4102.2,1.586]
[1760304781055,3.64616,4102.5,4102.2,1.586]
[1760304781255,3.76495022,4102.4,4102.1,0.43839]
[1760304781454,3.76495022,4102.4,4102.3,1.586]
[1760304782151,3.76495022,4102.4,4102.1,0.44019753]
[1760304782152,0.43838,4102.3,4102.1,0.00179753]
[1760304782453,5.96771576,4102.2,4102.1,0.00179753]
[1760304784456,1.09612,4101.7,4101.0,0.5962]
[1760304784652,3.2078,4101.7,4101.0,0.5962]
[1760304784951,0.4385,4101.2,4101.0,0.5962]
[1760304785254,0.4385,4101.2,4101.0,2.1822]
[1760304785255,5.93704741,4101.1,4101.0,2.1822]
[1760304785556,5.93704741,4101.1,4101.0,2.18510795]
[1760304787348,5.93704741,4101.1,4101.0,0.59910795]
[1760304787549,1.09644,4100.5,4099.5,3.2078]
[1760304787756,0.43863,4100.0,4099.6,1.586]
[1760304788162,3.43593997,4099.9,4099.6,1.586]
[1760304788355,3.87457997,4099.9,4099.7,1.586]
[1760304788554,3.87664732,4099.9,4099.7,1.586]
[1760304790057,3.87664732,4099.9,4099.0,0.5962]
[1760304790058,3.43800732,4099.9,4099.0,3.804]
[1760304790259,0.43871,4099.2,4099.0,0.5962]
[1760304790461,0.43871,4099.2,4099.0,2.1822]
[1760304790659,5.8983848,4099.1,4099.0,2.1822]
[1760304791053,5.8983848,4099.1,4099.0,2.18397474]
[1760304797654,5.8983848,4099.1,4099.0,0.00177474]
[1760304797655,9.1061848,4099.1,4099.0,0.00177474]
[1760304797863,0.43873,4099.0,4098.8,0.2154]
[1760304798157,5.86814488,4098.9,4098.8,0.2154]
[1760304798860,2.19378,4098.8,4097.5,3.2078]
[1760304799157,1.09737,4097.0,4095.1,2.97089427]
[1760304799357,3.2078,4095.3,4095.0,0.5962]
[1760304799560,3.2078,4095.8,4095.5,0.5962]
[1760304799757,3.2078,4095.8,4095.1,2.02515]
[1760304799758,2.55753239,4095.2,4095.0,0.5962]
[1760304799956,2.55753239,4095.2,4090.3,3.03596509]
[1760304799957,3.2078,4094.4,4090.3,3.03596509]
[1760304800155,0.43971,4089.9,4089.3,3.2078]
[1760304800360,3.2078,4089.2,4086.9,0.00326993]
[1760304800552,3.2078,4093.0,4089.6,0.5962]
[1760304800753,1.6867206,4094.1,4090.8,0.4396]
[1760304800754,3.2078,4092.7,4090.8,0.4396]
[1760304800956,2.56795413,4091.2,4090.8,0.00242582]
[1760304801159,3.2078,4091.4,4090.9,3.85336205]
[1760304801361,3.15280769,4091.1,4090.2,3.2078]
[1760304801562,2.6915302,4091.3,4090.6,0.43963]
[1760304801765,5.88514364,4091.0,4090.6,0.43963]
[1760304801959,3.19361344,4091.0,4090.7,3.85336205]
[1760304802261,3.2078,4092.2,4091.0,2.06549]
[1760304802455,3.19361344,4091.2,4090.9,3.2078]
[1760304802659,2.64866037,4091.3,4091.2,1.6259]
[1760304802865,3.2078,4092.8,4091.3,0.43956]
[1760304803067,3.2078,4092.8,4091.4,3.64734]
[1760304803264,3.2078,4091.5,4090.0,0.43969]
[1760304803455,3.2078,4091.9,4090.5,1.6259]
[1760304803658,3.82983988,4091.4,4090.6,1.6259]
[1760304803958,5.44680757,4091.8,4091.3,1.6259]
[1760304804155,4.6287168,4092.4,4092.1,1.6259]
[1760304804357,3.2078,4093.0,4092.0,0.7024]
[1760304804667,1.09962563,4092.6,4092.5,1.6259]
[1760304805163,0.43921,4094.5,4092.3,3.2078]
[1760304805164,3.2078,4093.6,4092.6,2.06532]
[1760304805357,3.2078,4093.6,4091.5,0.00216956]
[1760304805358,5.98194377,4092.6,4091.3,0.00237472]
[1760304805561,0.43972,4089.8,4088.8,0.7024]
[1760304805754,3.2078,4089.1,4088.8,0.7024]
[1760304806155,3.2078,4089.1,4088.2,3.2078]
[1760304806156,3.70980487,4089.0,4088.2,3.2078]
[1760304806367,3.70980487,4089.0,4088.0,1.14231]
[1760304806556,3.71279565,4089.0,4088.0,0.70527506]
[1760304806760,0.00299078,4089.0,4088.0,0.70527506]
[1760304807069,3.2078,4088.4,4088.0,0.00287506]
[1760304807369,5.85787107,4088.3,4088.0,0.00287506]
[1760304807762,0.00299078,4089.0,4088.0,1.62877506]
[1760304808066,5.94107204,4088.3,4088.0,1.62877506]
[1760304808266,3.2078,4088.1,4088.0,0.00287506]
[1760304808566,9.14205515,4088.1,4088.0,0.00287506]
[1760304808770,9.14205515,4088.1,4088.0,1.62877506]
[1760304808961,5.9753428,4088.1,4088.0,1.62877506]
[1760304809163,9.14205515,4088.1,4088.0,0.00287506]
[1760304809573,5.9753428,4088.1,4088.0,0.00287506]
[1760304809871,9.09933927,4088.1,4088.0,0.00287506]
[1760304812971,2.7675428,4088.1,4088.0,1.62877506]
[1760304813269,1.15256979,4088.6,4088.0,1.62877506]
[1760304813473,1.15256979,4088.6,4088.0,0.00287506]
[1760304813474,6.79543797,4088.1,4088.0,0.00287506]
[1760304813663,3.6477,4088.1,4088.0,0.00287506]
[1760304813865,5.99789534,4088.1,4088.0,0.00287506]
[1760304814072,9.56980126,4088.1,4088.0,0.00287506]
[1760304814276,9.12990126,4088.1,4088.0,0.00287506]
[1760304814463,0.43991,4088.0,4087.2,0.24466328]
[1760304814663,9.12990126,4088.1,4085.4,3.2078]
[1760304814664,3.2078,4087.3,4085.4,3.2078]
[1760304814863,3.2078,4086.8,4086.5,0.00322204]
[1760304815067,3.2078,4087.5,4086.5,1.10017]
[1760304815276,3.2078,4091.8,4087.4,9.31086717]
[1760304815567,3.2078,4091.8,4082.7,4.024]
[1760304815568,2.84833628,4092.7,4091.7,0.00212177]
[1760304815774,2.84833628,4092.7,4092.6,0.43942]
[1760304815962,3.2078,4093.8,4092.5,0.00193067]
[1760304816167,3.2078,4095.4,4093.9,10.982]
[1760304816471,3.2078,4095.4,4094.2,3.2078]
[1760304816472,3.24835319,4095.1,4094.2,3.2078]
[1760304816673,3.24835319,4095.1,4094.9,0.43916]
[1760304817067,2.75e-06,4095.2,4094.9,0.43916]
[1760304817575,2.75e-06,4095.2,4094.7,3.2078]
[1760304817576,2.75e-06,4095.2,4095.1,1.60425]
[1760304817770,1.648,4096.4,4096.3,0.43902]
[1760304818074,0.67,4096.8,4096.3,3.2078]
[1760304818377,1.868,4097.3,4097.1,0.43893]
[1760304818671,4.36745416,4097.2,4097.1,0.44129156]
[1760304818878,0.67,4098.6,4097.1,1.62826156]
[1760304819067,0.67,4098.6,4097.5,3.2078]
[1760304819377,3.2078,4098.8,4097.5,3.2078]
[1760304819378,3.2078,4098.8,4098.5,0.43878]
[1760304819868,3.11830753,4098.7,4098.5,0.43878]
[1760304820268,3.11830753,4098.7,4097.0,12.59961]
[1760304820472,3.2078,4098.3,4096.9,3.2078]
[1760304820667,1.648,4097.5,4096.9,3.2078]
[1760304820874,1.648,4097.5,4097.4,0.43889]
[1760304821065,1.648,4097.5,4096.3,0.43902]
[1760304821271,4.78571707,4097.5,4096.3,0.43902]
[1760304821574,3.2078,4096.4,4095.9,0.43905]
[1760304821778,1.648,4096.3,4095.8,0.43907]
[1760304822079,1.648,4096.3,4094.6,10.98017]
[1760304822080,1.648,4095.8,4095.5,0.4391]
[1760304822376,4.87329315,4095.7,4095.5,0.00312617]
[1760304822570,1.648,4095.6,4095.5,0.00312617]
[1760304823078,4.8868876,4095.6,4095.5,0.00312617]
[1760304823780,4.8868876,4095.6,4093.9,0.00159643]
[1760304823781,1.9327,4093.1,4089.4,3.2078]
[1760304823972,1.9327,4093.1,4088.0,0.7695]
[1760304823973,3.2078,4089.7,4089.0,0.7695]
[1760304824276,3.2078,4091.5,4090.3,1.9513]
[1760304824576,3.2078,4091.0,4090.4,1.9513]
[1760304824776,3.2078,4091.0,4090.3,0.00194226]
[1760304825076,3.2078,4090.5,4089.4,1.9513]
[1760304825275,3.2078,4089.5,4089.4,1.9513]
[1760304826173,3.2078,4089.5,4089.4,1.95380659]
[1760304826376,1.9327,4090.9,4088.6,0.00160057]
[1760304826377,3.2078,4089.7,4088.6,1.9513]
[1760304826570,3.2078,4089.2,4087.8,1.9513]
[1760304826777,3.2078,4089.2,4089.0,1.9513]
[1760304826974,3.2078,4089.2,4088.6,2.39114]
[1760304827276,3.2078,4089.2,4087.1,1.10002]
[1760304827277,3.2078,4088.7,4087.1,1.95325962]
[1760304827477,3.2078,4087.8,4087.7,2.39124]
[1760304827677,3.20983919,4087.8,4087.7,2.39391178]
[1760304828374,3.12508457,4087.8,4087.7,2.39391178]
[1760304828679,3.2078,4088.3,4088.0,0.43991]
[1760304828880,3.2078,4088.3,4088.1,1.9513]
[1760304829074,3.2078,4088.3,4088.2,0.43989]
[1760304829270,3.20968858,4088.3,4088.2,2.39119]
[1760304829475,3.20968858,4088.3,4088.2,2.39288629]
[1760304829679,3.20968858,4088.3,4088.2,1.17953876]
[1760304829876,1.9327,4090.2,4088.2,1.17953876]
[1760304829877,3.2078,4089.0,4088.3,0.00152879]
[1760304830079,3.2078,4089.5,4089.4,0.43976]
[1760304830880,3.2078,4089.5,4089.4,0.44116918]
[1760304831177,0.0030178,4089.5,4089.4,0.43976]
[1760304831384,3.13542287,4090.1,4089.8,0.43972]
[1760304831580,3.13542287,4090.1,4090.0,0.4397]
[1760304831782,3.13542287,4090.1,4089.5,1.9547]
[1760304832090,3.05742718,4090.6,4090.5,0.43964]
[1760304832278,3.05742718,4090.6,4090.5,2.39434]
[1760304832584,3.05985447,4090.6,4090.5,2.39434]
[1760304832772,3.05985447,4090.6,4090.5,1.18268876]
[1760304833178,3.05985447,4090.6,4090.5,1.62232876]
[1760304833679,3.05985447,4090.6,4089.2,0.00145702]
[1760304833879,3.05985447,4090.6,4089.4,1.09941]
[1760304834084,3.05985447,4090.6,4089.2,0.0014331]
[1760304834284,1.9385,4090.5,4089.1,3.2078]
[1760304834591,3.2078,4089.6,4089.5,0.43975]
[1760304834781,3.2078,4089.6,4089.5,2.39445]
[1760304834984,3.2078,4089.6,4088.8,1.9547]
[1760304835186,3.2078,4089.1,4089.0,1.9547]
[1760304835381,3.2078,4089.1,4087.8,6.09682198]
[1760304835382,3.2078,4089.1,4088.3,1.9547]
[1760304835579,3.2078,4088.4,4088.3,2.39458]
[1760304835783,3.2078,4088.4,4088.3,0.43988]
[1760304836185,3.2078,4088.4,4087.9,0.43992]
[1760304836385,3.2078,4087.8,4087.7,0.44261178]
[1760304836580,3.2078,4087.8,4087.7,0.00267178]
[1760304837279,5.17622238,4087.8,4087.7,0.00267178]
[1760304837787,5.1463,4087.8,4087.7,0.00267178]
[1760304838092,3.2078,4087.8,4087.7,0.00267178]
[1760304838382,1.9385,4087.7,4087.2,0.24466328]
[1760304838587,5.1463,4087.3,4087.2,0.24466328]
[1760304838794,5.1463,4087.3,4086.2,0.57537536]
[1760304838978,3.2078,4086.8,4086.7,0.44005]
[1760304839376,5.14894481,4086.8,4086.7,0.00209963]
[1760304839581,5.65775403,4086.8,4086.7,0.00209963]